bitfinex-derivatives/quotes_SOLF0:USTF0_20250606
["timestamp","ask_amount","ask_price","bid_price","bid_amount"]
[1749194973220,0.05141104,147.82,147.8,0.04821201]
[1749194973620,2.83210704,147.81,147.8,0.04821201]
[1749194973918,2.8321714,147.81,147.8,0.04821201]
[1749194974818,7.2989227,147.81,147.8,0.04821201]
[1749194975117,4.46634983,147.81,147.8,0.04821201]
[1749194975525,0.05141104,147.82,147.8,0.04821201]
[1749194975719,2.83269131,147.81,147.8,0.04821201]
[1749194976025,2.8325965,147.81,147.8,0.04821201]
[1749194976226,7.30609906,147.81,147.8,0.04821201]
[1749194976424,7.30609285,147.81,147.8,0.04821201]
[1749194976624,12.57832311,147.82,147.8,0.04821201]
[1749194976823,6.81341104,147.82,147.8,0.04821201]
[1749194977024,7.30622795,147.81,147.8,0.04821201]
[1749194977325,2.83259181,147.81,147.8,0.04821201]
[1749194978227,2.83320803,147.81,147.8,0.04821201]
[1749194978730,2.83323987,147.81,147.8,0.04821201]
[1749194979224,2.83361856,147.81,147.8,0.04821201]
[1749194980225,0.05141104,147.82,147.8,0.04821201]
[1749194981434,2.83341389,147.81,147.8,0.04821201]
[1749194981632,0.05141104,147.82,147.8,0.04821201]
[1749194982037,2.83347874,147.81,147.8,0.04821201]
[1749194982238,131.30409289,147.89,147.8,0.04821201]
[1749194982533,4.80113621,147.87,147.8,4.80113621]
[1749194982734,11.24574501,147.86,147.8,4.80113621]
[1749194982936,4.48546979,147.85,147.8,4.80113621]
[1749194983236,0.04819136,147.84,147.81,0.042821]
[1749194983840,0.04819136,147.84,147.82,6.7616]
[1749194984139,4.80113621,147.83,147.81,0.042821]
[1749194984640,4.48606366,147.82,147.81,0.042821]
[1749194984939,10.23756143,147.82,147.81,0.042821]
[1749194985139,10.23756143,147.82,147.77,6.764]
[1749194985336,9.28723532,147.81,147.76,34.46]
[1749194985640,11.56373621,147.81,147.77,6.764]
[1749194986039,11.56373621,147.81,147.74,4.80113621]
[1749194986040,4.80113621,147.81,147.74,4.80113621]
[1749194986339,0.04303708,147.79,147.76,0.04621048]
[1749194986541,0.04303708,147.79,147.76,6.81071048]
[1749194988142,6.80633708,147.79,147.76,6.81071048]
[1749194988343,0.04303708,147.79,147.76,6.81071048]
[1749194988547,0.04303708,147.79,147.77,6.764]
[1749194990343,0.04303708,147.79,147.78,6.7637]
[1749194993441,0.04303708,147.79,147.77,6.764]
[1749194994043,0.04303708,147.79,147.76,6.81081048]
[1749194997048,6.80633708,147.79,147.76,6.81081048]
[1749194997848,6.80633708,147.79,147.76,0.04621048]
[1749194998349,0.04303708,147.79,147.76,6.81081048]
[1749195000151,6.7638,147.78,147.76,0.04621048]
[1749195000349,0.04303708,147.79,147.76,0.04621048]
[1749195000745,6.80653708,147.79,147.76,0.04621048]
[1749195001143,0.04303708,147.79,147.76,0.04621048]
[1749195001548,6.80643708,147.79,147.76,0.04621048]
[1749195003855,6.80643708,147.79,147.76,6.81061048]
[1749195004056,6.80643708,147.79,147.76,0.04621048]
[1749195004552,6.7638,147.78,147.76,0.04621048]
[1749195005550,6.80643708,147.79,147.76,6.81081048]
[1749195006354,0.04303708,147.79,147.76,4.84734669]
[1749195006755,0.04303708,147.79,147.78,4.80113621]
[1749195006954,0.04303708,147.79,147.78,11.56483621]
[1749195011556,0.04303708,147.79,147.78,6.7637]
[1749195013255,0.04303708,147.79,147.76,0.04621048]
[1749195013449,6.80673708,147.79,147.76,0.04621048]
[1749195013652,0.04303708,147.79,147.78,4.8026836]
[1749195014856,0.04303708,147.79,147.76,0.04621048]
[1749195015253,0.04303708,147.79,147.76,6.81051048]
[1749195015447,0.04303708,147.79,147.76,0.04621048]
[1749195016755,0.04303708,147.79,147.77,6.7641]
[1749195017661,0.04303708,147.79,147.78,6.7637]
[1749195020965,0.04303708,147.79,147.77,6.7641]
[1749195021463,0.04303708,147.79,147.76,0.04621048]
[1749195021660,0.04303708,147.79,147.76,6.81051048]
[1749195022171,6.80633708,147.79,147.76,6.81051048]
[1749195022368,0.04303708,147.79,147.76,0.04621048]
[1749195022567,4.80701217,147.78,147.76,0.04621048]
[1749195022870,4.80700889,147.78,147.76,0.04621048]
[1749195023066,6.7642,147.77,147.76,0.04621048]
[1749195023663,44.75321175,147.77,147.72,6.7664]
[1749195023968,10.22019525,147.76,147.67,4.80902968]
[1749195024160,4.80902968,147.74,147.67,4.80902968]
[1749195024359,11.57492968,147.74,147.67,4.80902968]
[1749195024567,4.80902968,147.74,147.67,4.80902968]
[1749195024868,0.04320723,147.72,147.69,0.04753436]
[1749195025570,0.04320723,147.72,147.69,4.85656404]
[1749195025764,34.2,147.76,147.71,4.80902968]
[1749195026165,34.2,147.76,147.74,6.7652]
[1749195026364,45.2282,147.78,147.74,6.7652]
[1749195026570,10.20348041,147.77,147.74,6.7652]
[1749195026765,10.20348041,147.77,147.74,6.81671867]
[1749195026766,10.25249275,147.77,147.74,6.81671867]
[1749195026966,10.25249396,147.77,147.74,6.81671867]
[1749195027366,0.04901234,147.77,147.74,6.81671867]
[1749195027567,4.51811331,147.77,147.74,6.81671867]
[1749195028068,0.04901234,147.77,147.74,6.81671867]
[1749195029268,0.04901234,147.77,147.75,6.765]
[1749195029474,0.04901234,147.77,147.74,0.05151867]
[1749195029867,0.04901234,147.77,147.75,6.7651]
[1749195030073,0.04901234,147.77,147.74,0.05151867]
[1749195030465,0.04901234,147.77,147.76,6.7646]
[1749195034280,0.04901234,147.77,147.75,6.7649]
[1749195034472,0.04901234,147.77,147.74,0.05151867]
[1749195035274,0.04901234,147.77,147.76,6.7646]
[1749195036282,5.78154897,147.77,147.74,0.05151867]
[1749195036482,0.04901234,147.77,147.74,0.05151867]
[1749195036682,6.81331234,147.77,147.74,0.05151867]
[1749195037583,12.54512977,147.77,147.74,0.05151867]
[1749195037789,6.81331234,147.77,147.74,0.05151867]
[1749195039192,12.54193434,147.77,147.74,0.05151867]
[1749195039692,6.81331234,147.77,147.74,0.05151867]
[1749195039893,12.53639591,147.77,147.74,0.05151867]
[1749195040593,6.81331234,147.77,147.74,0.05151867]
[1749195044696,6.7647,147.76,147.74,0.05151867]
[1749195045898,6.81341234,147.77,147.74,0.05151867]
[1749195047985,0.04901234,147.77,147.74,0.05151867]
[1749195050692,0.04901234,147.77,147.75,6.7647]
[1749195052789,0.04901234,147.77,147.74,0.05151867]
[1749195052990,0.04901234,147.77,147.76,6.7646]
[1749195053195,0.04901234,147.77,147.76,11.57362968]
[1749195057999,0.04901234,147.77,147.74,34.05151867]
[1749195058304,0.04901234,147.77,147.74,0.05151867]
[1749195059596,6.81341234,147.77,147.74,0.05151867]
[1749195060097,17.01040198,147.77,147.74,6.81701867]
[1749195060303,0.04901234,147.77,147.74,6.81701867]
[1749195060605,0.04901234,147.77,147.74,0.05151867]
[1749195061001,0.04901234,147.77,147.74,6.81691867]
[1749195061403,6.81321234,147.77,147.74,6.81691867]
[1749195062007,6.81321234,147.77,147.74,0.05151867]
[1749195062311,6.7647,147.76,147.74,0.05151867]
[1749195062600,4.46104133,147.75,147.74,0.05151867]
[1749195062806,6.7647,147.76,147.74,0.05151867]
[1749195063004,10.38318041,147.75,147.68,34.0]
[1749195063206,4.80902968,147.73,147.67,2.1749]
[1749195063404,38.80902968,147.73,147.67,2.1749]
[1749195064107,0.0464337,147.71,147.69,0.04798462]
[1749195064809,6.8137337,147.71,147.69,0.04798462]
[1749195065010,11.62276338,147.71,147.69,0.04798462]
[1749195065308,4.85546338,147.71,147.64,132.47121974]
[1749195065510,4.80902968,147.69,147.62,34.0]
[1749195065709,4.80902968,147.69,147.62,38.80902968]
[1749195066009,6.7683,147.68,147.64,6.7697]
[1749195066404,0.04859102,147.67,147.65,0.05081065]
[1749195066903,0.04859102,147.67,147.65,6.82041065]
[1749195067606,0.04859102,147.67,147.65,0.05081065]
[1749195068910,4.8576207,147.67,147.65,0.05081065]
[1749195069507,6.7692,147.66,147.65,0.05081065]
[1749195072106,4.80902968,147.65,147.59,34.0]
[1749195072311,4.80902968,147.63,147.56,36.1338]
[1749195072914,4.80902968,147.63,147.58,6.7728]
[1749195073100,0.04464268,147.62,147.59,0.05073429]
[1749195073500,4.80902968,147.61,147.59,0.05073429]
[1749195073700,38.76902968,147.61,147.59,0.05073429]
[1749195074605,45.54062968,147.61,147.59,0.05073429]
[1749195076008,38.76902968,147.61,147.59,0.05073429]
[1749195076705,45.54052968,147.61,147.59,0.05073429]
[1749195078206,33.96,147.61,147.59,0.05073429]
[1749195078809,33.96,147.61,147.6,6.772]
[1749195079010,33.96,147.61,147.59,0.05073429]
[1749195079802,33.96,147.61,147.6,6.772]
[1749195080207,33.96,147.61,147.59,0.05073429]
[1749195080817,33.96,147.61,147.59,6.82283429]
[1749195081016,33.96,147.61,147.59,0.05073429]
[1749195081220,4.80902968,147.6,147.59,0.05073429]
[1749195081519,11.58102968,147.6,147.59,0.05073429]
[1749195081907,4.80902968,147.6,147.59,0.05073429]
[1749195082112,11.58102968,147.6,147.59,0.05073429]
[1749195084022,6.7727,147.59,147.55,6.7741]
[1749195084721,11.58112968,147.6,147.56,6.7735]
[1749195084920,0.04725084,147.59,147.57,0.04769898]
[1749195085918,4.80902968,147.58,147.52,2.2298]
[1749195086517,4.80902968,147.56,147.5,33.98]
[1749195086918,6.7744,147.55,147.51,6.7758]
[1749195087121,0.04974081,147.54,147.52,0.04692929]
[1749195087623,0.04974081,147.54,147.52,6.82242929]
[1749195088126,6.82444081,147.54,147.52,0.04692929]
[1749195088526,0.04974081,147.54,147.52,0.04692929]
[1749195088925,6.82454081,147.54,147.52,0.04692929]
[1749195089118,4.80902968,147.53,147.52,0.04692929]
[1749195089514,38.80902968,147.53,147.52,0.04692929]
[1749195089714,45.58422968,147.53,147.52,0.04692929]
[1749195089918,38.80902968,147.53,147.52,0.04692929]
[1749195090421,34.0,147.53,147.52,0.04692929]
[1749195090822,34.0,147.53,147.52,6.82252929]
[1749195093024,34.0,147.53,147.52,0.04692929]
[1749195095324,40.7752,147.53,147.52,0.04692929]
[1749195096427,34.0,147.53,147.52,0.04692929]
[1749195098422,34.0,147.53,147.52,6.82252929]
[1749195101426,0.04974081,147.54,147.52,6.82252929]
[1749195102932,0.04974081,147.54,147.53,6.7751]
[1749195103429,0.04974081,147.54,147.52,6.82232929]
[1749195103633,0.04974081,147.54,147.52,0.04692929]
[1749195104134,6.82454081,147.54,147.52,0.04692929]
[1749195104524,0.04974081,147.54,147.52,0.04692929]
[1749195104729,6.7751,147.53,147.52,0.04692929]
[1749195106727,11.58412968,147.53,147.52,0.04692929]
[1749195107928,6.776,147.52,147.48,6.7773]
[1749195108138,4.80902968,147.51,147.48,6.7773]
[1749195108942,11.63495984,147.51,147.48,6.82589967]
[1749195109531,11.63495984,147.51,147.48,0.04859967]
[1749195109937,6.82593016,147.51,147.48,0.04859967]
[1749195110239,11.63495984,147.51,147.48,0.04859967]
[1749195110737,11.63495984,147.51,147.48,6.82579967]
[1749195113936,6.7764,147.5,147.48,0.04859967]
[1749195116640,11.63485984,147.51,147.48,0.04859967]
[1749195117335,6.7763,147.5,147.48,0.04859967]
[1749195118537,11.63515984,147.51,147.48,0.04859967]
[1749195119737,6.7766,147.5,147.48,0.04859967]
[1749195120539,11.63515984,147.51,147.48,0.04859967]
[1749195120737,4.85885984,147.51,147.48,0.04859967]
[1749195120936,4.80902968,147.49,147.48,0.04859967]
[1749195121144,4.80902968,147.49,147.42,2.1357]
[1749195121341,4.80902968,147.47,147.43,6.7795]
[1749195121741,4.80902968,147.47,147.42,2.1357]
[1749195121937,4.80902968,147.45,147.39,2.1157]
[1749195122140,0.04546081,147.43,147.41,0.05076792]
[1749195122341,0.04546081,147.43,147.41,6.83136792]
[1749195122741,0.04546081,147.43,147.41,0.05076792]
[1749195124649,0.04546081,147.43,147.42,6.7802]
[1749195127749,34.18,147.49,147.46,6.7782]
[1749195128650,34.22821102,147.49,147.46,6.82723978]
[1749195129650,34.22821102,147.49,147.46,0.04903978]
[1749195130246,34.22821102,147.49,147.47,6.7779]
[1749195130443,34.22821102,147.49,147.46,0.04903978]
[1749195131049,34.22821102,147.49,147.46,6.82703978]
[1749195131249,34.22821102,147.49,147.46,0.04903978]
[1749195131849,34.22821102,147.49,147.47,6.7777]
[1749195133250,34.22821102,147.49,147.46,6.82703978]
[1749195133549,41.00521102,147.49,147.46,6.82703978]
[1749195133755,34.22821102,147.49,147.46,6.82703978]
[1749195134167,34.22821102,147.49,147.46,0.04903978]
[1749195134852,11.58662968,147.48,147.46,0.04903978]
[1749195137550,4.80902968,147.48,147.46,0.04903978]
[1749195137758,34.22821102,147.49,147.46,0.04903978]
[1749195138151,34.22821102,147.49,147.48,6.7775]
[1749195138152,0.04821102,147.49,147.48,6.7775]
[1749195138849,2.3303,147.56,147.47,4.80902968]
[1749195139154,2.3303,147.56,147.46,36.45813978]
[1749195139155,36.4303,147.56,147.5,4.80902968]
[1749195139750,0.04302387,147.54,147.52,0.04598981]
[1749195140353,0.04302387,147.54,147.53,6.7751]
[1749195140752,0.04302387,147.54,147.52,4.85501949]
[1749195140753,34.1,147.59,147.52,4.85501949]
[1749195140953,34.1,147.59,147.54,4.80902968]
[1749195141357,40.8727,147.59,147.55,6.7741]
[1749195141748,40.8727,147.59,147.56,0.05110536]
[1749195141955,6.81701564,147.58,147.56,0.05110536]
[1749195142959,0.04401564,147.58,147.56,0.05110536]
[1749195147265,0.04401564,147.58,147.57,6.7733]
[1749195147564,0.04401564,147.58,147.56,0.05110536]
[1749195147865,0.04401564,147.58,147.56,6.82450536]
[1749195152963,0.04401564,147.58,147.56,0.05110536]
[1749195153158,4.85304532,147.58,147.56,0.05110536]
[1749195153369,11.62624532,147.58,147.56,0.05110536]
[1749195154068,4.85304532,147.58,147.56,0.05110536]
[1749195154471,0.04401564,147.58,147.56,0.05110536]
[1749195155670,0.04401564,147.58,147.56,6.82490536]
[1749195159173,0.04401564,147.58,147.56,0.05110536]
[1749195162376,0.04401564,147.58,147.56,6.82480536]
[1749195164981,6.81691564,147.58,147.56,0.05110536]
[1749195165877,6.7733,147.57,147.56,0.05110536]
[1749195175087,6.7744,147.55,147.51,34.0]
[1749195175483,4.80902968,147.56,147.52,6.7753]
[1749195175890,11.58302968,147.56,147.52,6.7753]
[1749195176081,0.04828336,147.55,147.53,0.04413221]
[1749195179488,0.04828336,147.55,147.53,6.81913221]
[1749195180184,0.04828336,147.55,147.54,6.7747]
[1749195181185,0.04828336,147.55,147.53,6.81923221]
[1749195181485,0.04828336,147.55,147.53,0.04413221]
[1749195183689,0.04828336,147.55,147.53,6.81923221]
[1749195184994,0.04828336,147.55,147.53,0.04413221]
[1749195185795,0.04828336,147.55,147.54,6.7747]
[1749195186389,0.04828336,147.55,147.53,6.81913221]
[1749195187095,0.04828336,147.55,147.53,0.04413221]
[1749195190000,6.82268336,147.55,147.53,0.04413221]
[1749195190295,0.04828336,147.55,147.53,0.04413221]
[1749195191103,6.82278336,147.55,147.53,0.04413221]
[1749195192697,0.04828336,147.55,147.53,0.04413221]
[1749195195601,0.04828336,147.55,147.53,6.81903221]
[1749195199109,0.04828336,147.55,147.54,6.7747]
[1749195199306,0.04828336,147.55,147.53,0.04413221]
[1749195199708,0.04828336,147.55,147.53,6.81913221]
[1749195203216,3.13320212,147.55,147.53,6.81913221]
[1749195208717,0.04828336,147.55,147.54,9.85961876]
[1749195208912,3.13329831,147.55,147.53,0.04413221]
[1749195209318,9.90749831,147.55,147.53,0.04413221]
[1749195210017,3.13329831,147.55,147.53,0.04413221]
[1749195210227,3.08501495,147.54,147.53,0.04413221]
[1749195211823,9.85971495,147.54,147.53,0.04413221]
[1749195212425,9.86027004,147.54,147.53,0.04413221]
[1749195212623,3.08557004,147.54,147.53,0.04413221]
[1749195215432,3.08557004,147.54,147.53,6.81933221]
[1749195217235,3.08557004,147.54,147.53,0.04413221]
[1749195219034,6.82258336,147.55,147.53,0.04413221]
[1749195219234,3.08557004,147.54,147.53,0.04413221]
[1749195222429,37.08582758,147.54,147.47,12.5248432]
[1749195222630,3.08744769,147.48,147.46,34.0]
[1749195222824,3.0876865,147.48,147.46,34.0]
[1749195223029,3.0876865,147.48,147.47,6.7776]
[1749195225134,3.0876865,147.48,147.46,6.82942343]
[1749195225338,3.0876865,147.47,147.46,0.05122343]
[1749195227132,4.82532365,147.48,147.46,0.05122343]
[1749195227837,4.82532365,147.48,147.46,6.82962343]
[1749195228239,4.82532365,147.48,147.47,6.7779]
[1749195228440,0.04414242,147.49,147.46,0.05122343]
[1749195228733,0.04414242,147.49,147.47,6.7776]
[1749195229037,0.04414242,147.49,147.46,0.05122343]
[1749195229740,0.04414242,147.49,147.48,6.7775]
[1749195231437,0.04414242,147.49,147.47,6.7778]
[1749195232043,0.04414242,147.49,147.46,6.82952343]
[1749195233143,0.04414242,147.49,147.37,16.81854405]
[1749195233144,4.82864573,147.47,147.35,4.82864573]
[1749195233347,4.82864573,147.44,147.36,2.26]
[1749195233641,4.82776704,147.45,147.37,38.82776704]
[1749195233837,4.82759758,147.45,147.37,38.82759758]
[1749195234033,0.04688708,147.42,147.4,0.04700534]
[1749195235843,0.04688708,147.42,147.41,6.7807]
[1749195242545,0.04688708,147.42,147.41,40.8007]
[1749195243442,35.96688708,147.42,147.4,0.04700534]
[1749195243643,6.7816,147.39,147.3,6.7171]
[1749195243842,6.7816,147.39,147.3,11.54904337]
[1749195243843,4.83194337,147.38,147.3,11.54904337]
[1749195244144,4.83194337,147.39,147.32,6.7847]
[1749195244345,6.7825,147.38,147.32,6.7847]
[1749195244551,0.05210289,147.36,147.34,0.05200346]
[1749195253356,4.83194337,147.35,147.34,0.05200346]
[1749195254962,0.05210289,147.36,147.34,0.05200346]
[1749195257961,0.05210289,147.36,147.34,6.83570346]
[1749195261166,4.83194337,147.35,147.34,0.05200346]
[1749195261561,4.88404626,147.36,147.34,0.05200346]
[1749195262763,11.66704626,147.36,147.34,0.05200346]
[1749195266065,6.83510289,147.36,147.34,0.05200346]
[1749195266367,0.05210289,147.36,147.34,0.05200346]
[1749195267263,6.83510289,147.36,147.34,0.05200346]
[1749195268867,0.05210289,147.36,147.34,0.05200346]
[1749195270868,6.83510289,147.36,147.34,0.05200346]
[1749195271073,11.66704626,147.36,147.34,0.05200346]
[1749195271871,0.05210289,147.36,147.34,6.83560346]
[1749195272071,4.88404626,147.36,147.34,6.83560346]
[1749195272269,4.88404626,147.36,147.34,0.05200346]
[1749195275580,11.66744626,147.36,147.34,0.05200346]
[1749195276781,4.88404626,147.36,147.34,0.05200346]
[1749195277579,11.66734626,147.36,147.34,0.05200346]
[1749195277981,4.88404626,147.36,147.34,0.05200346]
[1749195278582,6.83530289,147.36,147.34,0.05200346]
[1749195278880,11.66724626,147.36,147.34,0.05200346]
[1749195281179,3.0936151,147.35,147.34,0.05200346]
[1749195283184,6.83520289,147.36,147.34,0.05200346]
[1749195283386,3.0936151,147.35,147.34,0.05200346]
[1749195290294,0.05210289,147.36,147.34,0.05200346]
[1749195290589,3.0936151,147.35,147.34,0.05200346]
[1749195290892,0.05210289,147.36,147.34,0.05200346]
[1749195291080,3.14571799,147.36,147.34,0.05200346]
[1749195291690,3.14571799,147.36,147.34,6.83580346]
[1749195291989,0.05210289,147.36,147.34,6.83580346]
[1749195292391,3.14571799,147.36,147.34,6.83580346]
[1749195297193,3.14571799,147.36,147.34,0.05200346]
[1749195297891,0.05210289,147.36,147.34,0.05200346]
[1749195298093,3.14571799,147.36,147.34,0.05200346]
[1749195299784,3.0936151,147.35,147.34,0.05200346]
[1749195300297,3.0936151,147.35,147.34,6.83590346]
[1749195301091,3.0936151,147.35,147.34,0.05200346]
[1749195302391,0.05210289,147.36,147.34,0.05200346]
[1749195302594,3.14571799,147.36,147.34,0.05200346]
[1749195303192,13.15635832,147.35,147.28,12.58487134]
[1749195303399,35.94,147.38,147.29,3.0936151]
[1749195303400,3.0936151,147.33,147.29,3.0936151]
[1749195303791,3.0936151,147.32,147.28,3.0936151]
[1749195304093,3.0936151,147.32,147.29,0.04731076]
[1749195304094,0.04399779,147.31,147.29,0.04731076]
[1749195304293,0.04399779,147.31,147.3,6.7857]
[1749195304696,0.04399779,147.31,147.3,9.8793151]
[1749195306798,35.94,147.38,147.3,52.41848644]
[1749195307000,35.94,147.38,147.34,3.0936151]
[1749195307001,4.49760924,147.37,147.34,3.0936151]
[1749195307301,39.0336151,147.38,147.35,6.7833]
[1749195307600,7.59122091,147.37,147.35,6.7833]
[1749195307790,3.0936151,147.37,147.35,6.83420602]
[1749195308601,0.04666812,147.38,147.36,6.783]
[1749195308794,4.49753656,147.37,147.36,6.783]
[1749195308988,0.04666812,147.38,147.36,6.783]
[1749195309796,0.04666812,147.38,147.36,9.8766151]
[1749195310503,6.82876812,147.38,147.35,0.05090602]
[1749195310896,7.56757374,147.37,147.35,0.05090602]
[1749195311102,3.0936151,147.36,147.35,0.05090602]
[1749195312703,7.56669333,147.36,147.35,0.05090602]
[1749195313202,4.47307838,147.36,147.35,0.05090602]
[1749195313505,11.25607838,147.36,147.35,0.05090602]
[1749195313799,4.47333035,147.36,147.35,0.05090602]
[1749195314105,4.83300821,147.37,147.35,0.05090602]
[1749195314303,4.48965193,147.36,147.35,0.05090602]
[1749195314704,11.27265193,147.36,147.35,0.05090602]
[1749195315803,11.27630256,147.36,147.35,0.05090602]
[1749195317004,6.783,147.36,147.35,0.05090602]
[1749195317903,11.27636258,147.36,147.35,0.05090602]
[1749195318101,11.27636244,147.36,147.35,0.05090602]
[1749195319204,11.26701906,147.36,147.35,0.05090602]
[1749195319803,11.26701892,147.36,147.35,0.05090602]
[1749195320005,6.783,147.36,147.35,0.05090602]
[1749195320402,11.26709321,147.36,147.35,0.05090602]
[1749195321408,6.783,147.36,147.35,0.05090602]
[1749195321607,4.48358387,147.36,147.35,0.05090602]
[1749195321799,4.83300821,147.37,147.35,0.05090602]
[1749195322304,11.26658314,147.36,147.35,0.05090602]
[1749195322705,11.26640055,147.36,147.35,0.05090602]
[1749195322905,6.783,147.36,147.35,0.05090602]
[1749195323207,12.33803122,147.36,147.35,0.05090602]
[1749195323504,16.81582468,147.36,147.35,0.05090602]
[1749195323705,5.55485288,147.36,147.35,0.05090602]
[1749195323905,10.03282468,147.36,147.35,0.05090602]
[1749195324106,4.4779718,147.36,147.35,0.05090602]
[1749195324404,11.2609718,147.36,147.35,0.05090602]
[1749195324707,11.26129146,147.36,147.35,0.05090602]
[1749195324900,6.783,147.36,147.35,0.05090602]
[1749195325102,11.26129468,147.36,147.35,0.05090602]
[1749195326109,11.26085478,147.36,147.35,0.05090602]
[1749195327309,11.2609807,147.36,147.35,0.05090602]
[1749195327509,6.783,147.36,147.35,0.05090602]
[1749195327810,11.26146447,147.36,147.35,0.05090602]
[1749195328410,6.783,147.36,147.35,0.05090602]
[1749195328599,11.26194793,147.36,147.35,0.05090602]
[1749195328807,6.783,147.36,147.35,0.05090602]
[1749195329113,11.26736338,147.36,147.35,0.05090602]
[1749195329410,6.783,147.36,147.35,0.05090602]
[1749195329612,11.26736338,147.36,147.35,0.05090602]
[1749195331008,11.26736016,147.36,147.35,0.05090602]
[1749195331313,11.26723422,147.36,147.35,0.05090602]
[1749195331513,6.783,147.36,147.35,0.05090602]
[1749195331714,11.26723422,147.36,147.35,0.05090602]
[1749195332012,6.7827,147.37,147.35,0.05090602]
[1749195332414,36.78666812,147.38,147.35,0.05090602]
[1749195332618,43.56906812,147.38,147.35,0.05090602]
[1749195333115,11.27966221,147.37,147.35,0.05090602]
[1749195333316,6.7825,147.37,147.35,0.05090602]
[1749195334709,36.78666812,147.38,147.35,0.05090602]
[1749195334915,10.04798783,147.37,147.35,0.05090602]
[1749195335110,6.783,147.36,147.35,0.05090602]
[1749195335316,9.87575969,147.36,147.35,0.05090602]
[1749195336416,19.92432001,147.36,147.35,0.05090602]
[1749195336615,19.92433321,147.36,147.35,0.05090602]
[1749195336811,19.92419775,147.36,147.35,0.05090602]
[1749195337016,19.92419773,147.36,147.35,0.05090602]
[1749195337217,19.92420219,147.36,147.35,0.05090602]
[1749195337515,15.42745866,147.36,147.35,0.05090602]
[1749195337716,19.92419898,147.36,147.35,0.05090602]
[1749195338216,19.92417342,147.36,147.35,0.05090602]
[1749195338615,19.93036946,147.36,147.35,0.05090602]
[1749195338812,8.64408732,147.36,147.28,14.85387134]
[1749195339019,36.78666812,147.38,147.28,5.36175969]
[1749195339020,3.09275969,147.32,147.28,5.36175969]
[1749195339416,6.7855,147.31,147.28,12.14835969]
[1749195339615,6.7855,147.31,147.28,5.36175969]
[1749195339814,6.83255527,147.31,147.28,5.40996748]
[1749195340907,6.7858,147.3,147.28,5.40996748]
[1749195341111,0.04705527,147.31,147.28,5.40996748]
[1749195341412,6.83275527,147.31,147.28,5.40996748]
[1749195344519,6.786,147.3,147.28,5.40996748]
[1749195344818,3.13981496,147.31,147.28,5.40996748]
[1749195345614,0.04705527,147.31,147.28,5.40996748]
[1749195346119,0.04705527,147.31,147.28,12.19656748]
[1749195346327,0.04705527,147.31,147.29,3.09275969]
[1749195346715,0.04705527,147.31,147.29,9.87895969]
[1749195346919,0.04705527,147.31,147.28,5.40996748]
[1749195347320,3.13981496,147.31,147.28,0.04820779]
[1749195348622,9.92521496,147.31,147.28,0.04820779]
[1749195349824,9.92521496,147.31,147.28,6.83480779]
[1749195350025,3.13981496,147.31,147.28,3.14096748]
[1749195350728,3.13981496,147.31,147.29,6.7861]
[1749195351724,0.04705527,147.31,147.29,6.7861]
[1749195361234,3.13981496,147.31,147.28,6.83480779]
[1749195362025,3.13981496,147.31,147.29,6.7861]
[1749195362335,0.04705527,147.31,147.28,0.04820779]
[1749195362537,3.13981496,147.31,147.28,6.83460779]
[1749195362935,3.09275969,147.3,147.28,0.04820779]
[1749195365536,3.09275969,147.3,147.28,6.83490779]
[1749195369241,3.09275969,147.3,147.28,0.04820779]
[1749195370343,3.09275969,147.3,147.28,6.83470779]
[1749195371644,9.92531496,147.31,147.28,6.83470779]
[1749195372145,3.13981496,147.31,147.28,6.83470779]
[1749195372345,0.04705527,147.31,147.28,6.83470779]
[1749195372538,3.13981496,147.31,147.28,6.83470779]
[1749195372846,0.04705527,147.31,147.29,6.7862]
[1749195381651,3.13981496,147.31,147.29,6.7862]
[1749195386654,0.04705527,147.31,147.29,6.7862]
[1749195388751,0.04705527,147.31,147.3,6.7857]
[1749195388955,10.05904382,147.35,147.3,3.09328193]
[1749195389154,3.09337065,147.36,147.31,3.09337065]
[1749195389356,10.05687079,147.35,147.32,6.7844]
[1749195389556,9.87647065,147.36,147.31,3.09337065]
[1749195389751,4.51092257,147.35,147.32,3.09337065]
[1749195389955,0.05201009,147.35,147.32,3.14188364]
[1749195390650,0.05201009,147.35,147.33,6.784]
[1749195390956,0.05201009,147.35,147.32,3.14188364]
[1749195391650,0.05201009,147.35,147.34,6.7839]
[1749195391958,0.05201009,147.35,147.34,9.87727065]
[1749195392258,36.08,147.4,147.34,3.09337065]
[1749195392453,3.09337065,147.41,147.37,3.09337065]
[1749195392759,36.08,147.43,147.34,36.08]
[1749195392760,4.50120089,147.4,147.38,9.87507065]
[1749195392947,5.53575944,147.41,147.38,9.87507065]
[1749195393152,3.09337065,147.42,147.38,9.87507065]
[1749195393348,7.64095418,147.41,147.39,0.04909704]
[1749195393647,3.1396787,147.41,147.39,0.04909704]
[1749195399566,0.04630805,147.41,147.39,0.04909704]